fUSD/lending_fUSD_20250823
["ID","MTS","AMOUNT","RATE_DAILY","PERIOD"]
[381064078,1755984657775,-162.899649,0.000284,7]
[381064079,1755984657787,-221.0,0.00028419,2]
[381064080,1755984657810,-1000.0,0.00028421,5]
[381064081,1755984657823,-1000.0,0.00028421,5]
[381064082,1755984657837,-221.0,0.00028455,2]
[381064083,1755984657852,-500.0,0.00028473,5]
[381064084,1755984657866,-221.0,0.00028482,2]
[381064085,1755984657883,-300.0,0.00028489,10]
[381064086,1755984657897,-300.0,0.00028489,10]
[381064087,1755984657913,-300.0,0.00028489,10]
[381064088,1755984657928,-150.0,0.00028489,2]
[381064089,1755984657942,-181.31094609,0.00028493,5]
[381064090,1755984657957,-300.0,0.00028499,10]
[381064091,1755984657970,-300.0,0.00028499,10]
[381064092,1755984657984,-300.0,0.00028499,10]
[381064093,1755984657998,-150.0,0.00028515,2]
[381064094,1755984658012,-1000.0,0.00028521,5]
[381064095,1755984658026,-500.0,0.00028541,15]
[381064096,1755984658040,-152.0,0.00028546,3]
[381064097,1755984658054,-398.5,0.00028568,15]
[381064098,1755984658068,-150.0,0.00028581,2]
[381064099,1755984658082,-500.0,0.00028598,2]
[381064100,1755984658095,-500.0,0.00028598,2]
[381064101,1755984658110,-500.0,0.00028598,2]
[381064102,1755984658124,-200.0,0.00028598,2]
[381064103,1755984658138,-300.0,0.00028598,2]
[381064104,1755984658154,-500.0,0.00028598,2]
[381064105,1755984658168,-500.0,0.00028598,2]
[381064106,1755984658184,-870.0,0.00028598,2]
[381064107,1755984658198,-500.0,0.00028598,2]
[381064108,1755984658213,-500.0,0.00028598,2]
[381064109,1755984658228,-1002.01,0.000286,30]
[381064110,1755984658242,-307.41620323,0.000286,2]
[381064111,1755984658256,-150.0,0.00028649,30]
[381064112,1755984658271,-600.0,0.00028663,2]
[381064113,1755984658285,-7391.03963048,0.000287,2]
[381064114,1755984658302,-700.0,0.000287,5]
[381064115,1755984658316,-12929.0979346,0.0002876,2]
[381064116,1755984658329,-200.0,0.00028767,2]
[381064117,1755984658345,-200.0,0.00028767,2]
[381064118,1755984658358,-200.0,0.00028767,2]
[381064119,1755984658373,-220.0,0.00028767,14]
[381064120,1755984658387,-171.0,0.00028767,14]
[381064121,1755984658401,-633.86877784,0.00028767,120]
[381064122,1755984658415,-221.0,0.00028793,7]
[381064123,1755984658429,-500.0,0.00028815,15]
[381064124,1755984658443,-500.0,0.00028843,2]
[381064125,1755984658458,-500.0,0.00028872,2]
[381064126,1755984658472,-622.08313299,0.00028872,2]
[381064127,1755984658486,-500.0,0.00028872,2]
[381064128,1755984658500,-300.0,0.00028872,2]
[381064129,1755984658515,-500.0,0.00028872,2]
[381064130,1755984658529,-500.0,0.00028872,2]
[381064131,1755984658542,-870.0,0.00028872,2]
[381064132,1755984658556,-500.0,0.00028872,2]
[381064133,1755984658570,-500.0,0.00028872,2]
[381064134,1755984658584,-153.20915429,0.00028874,2]
[381064135,1755984658598,-221.0,0.00028881,2]
[381064136,1755984658613,-1586.71,0.000289,90]
[381064137,1755984658627,-2000.0,0.000289,2]
[381064138,1755984658641,-332.68,0.00028904,9]
[381064139,1755984658655,-1200.0,0.00028947,2]
[381064140,1755984658669,-150.0,0.00028951,2]
[381064141,1755984658683,-795.35027172,0.00028953,2]
[381064142,1755984658697,-1013.68171886,0.00028956,2]
[381064143,1755984658712,-1232.013166,0.00028958,2]
[381064144,1755984658726,-1450.34461314,0.0002896,2]
[381064145,1755984658741,-1668.67606027,0.00028962,2]
[381064146,1755984658755,-1887.00750741,0.00028964,2]
[381064147,1755984658769,-2105.33895455,0.00028966,2]
[381064148,1755984658784,-2323.67040169,0.00028968,2]
[381064149,1755984658798,-666.72841973,0.00028968,5]
[381064150,1755984658812,-252.6525107,0.00028968,5]
[381064151,1755984658827,-2542.00184883,0.0002897,2]
[381064152,1755984658841,-151.0,0.0002897,7]
[381064153,1755984658855,-151.0,0.0002897,7]
[381064154,1755984658870,-151.0,0.0002897,7]
[381064155,1755984658884,-151.0,0.0002897,7]
[381064156,1755984658898,-151.0,0.0002897,7]
[381064157,1755984658912,-211.376072,0.0002897,7]
[381064158,1755984658927,-429.019738,0.0002897,7]
[381064159,1755984658940,-429.019738,0.0002897,7]
[381064160,1755984658954,-151.0,0.0002897,7]
[381064161,1755984658968,-151.0,0.0002897,7]
[381064162,1755984658982,-429.019738,0.0002897,7]
[381064163,1755984658996,-151.0,0.0002897,7]
[381064164,1755984659010,-151.0,0.0002897,7]
[381064165,1755984659024,-151.0,0.0002897,7]
[381064166,1755984659038,-151.0,0.0002897,7]
[381064167,1755984659052,-274.199986,0.0002897,7]
[381064168,1755984659066,-429.019738,0.0002897,7]
[381064169,1755984659079,-151.0,0.0002897,7]
[381064170,1755984659094,-683.174286,0.0002897,7]
[381064171,1755984659108,-151.0,0.0002897,7]
[381064172,1755984659121,-274.199986,0.0002897,7]
[381064173,1755984659136,-151.0,0.0002897,7]
[381064174,1755984659150,-683.174286,0.0002897,7]
[381064175,1755984659164,-274.199986,0.0002897,7]
[381064176,1755984659178,-683.174286,0.0002897,7]
[381064177,1755984659191,-683.174286,0.0002897,7]
[381064178,1755984659205,-151.0,0.0002897,7]
[381064179,1755984659219,-274.199986,0.0002897,7]
[381064180,1755984659233,-235.783258,0.0002897,7]
[381064181,1755984659247,-151.0,0.0002897,7]
[381064182,1755984659261,-151.0,0.0002897,7]
[381064183,1755984659274,-151.0,0.0002897,7]
[381064184,1755984659288,-262.309968,0.0002897,7]
[381064185,1755984659305,-262.309968,0.0002897,7]
[381064186,1755984659319,-262.309968,0.0002897,7]
[381064187,1755984659333,-262.309968,0.0002897,7]
[381064188,1755984659349,-289.910256,0.0002897,7]
[381064189,1755984659363,-151.0,0.0002897,7]
[381064190,1755984659377,-151.0,0.0002897,7]
[381064191,1755984659392,-151.0,0.0002897,7]
[381064192,1755984659406,-151.0,0.0002897,7]
[381064193,1755984659419,-151.0,0.0002897,7]
[381064194,1755984659432,-151.0,0.0002897,7]
[381064195,1755984659446,-300.0,0.00028979,10]
[381064196,1755984659459,-300.0,0.00028979,10]
[381064197,1755984659472,-151.0,0.0002898,7]
[381064198,1755984659486,-151.0,0.0002898,7]
[381064199,1755984659499,-151.0,0.0002898,7]
[381064200,1755984659512,-151.0,0.0002898,7]
[381064201,1755984659527,-151.0,0.0002898,7]
[381064202,1755984659540,-151.0,0.0002898,7]
[381064203,1755984659554,-151.0,0.0002898,7]
[381064204,1755984659567,-262.037975,0.0002898,7]
[381064205,1755984659581,-151.0,0.0002898,7]
[381064206,1755984659594,-199.484235,0.0002898,7]
[381064207,1755984659608,-199.484235,0.0002898,7]
[381064208,1755984659621,-199.484235,0.0002898,7]
[381064209,1755984659635,-199.484235,0.0002898,7]
[381064210,1755984659649,-151.0,0.0002898,7]
[381064211,1755984659659,-269.000353,0.0002898,7]
[381064212,1755984659668,-151.0,0.0002898,7]
[381064213,1755984659677,-153.412608,0.0002898,7]
[381064214,1755984659686,-151.0,0.0002898,7]
[381064215,1755984659695,-151.0,0.0002898,2]
[381064216,1755984659704,-151.0,0.0002898,7]
[381064217,1755984659713,-151.0,0.0002898,7]
[381064218,1755984659723,-151.0,0.0002898,7]
[381064219,1755984659732,-151.0,0.0002898,7]
[381064220,1755984659741,-151.0,0.0002898,7]
[381064221,1755984659750,-151.0,0.0002898,7]
[381064222,1755984659759,-151.0,0.0002898,7]
[381064223,1755984659769,-151.0,0.0002898,7]
[381064224,1755984659778,-151.0,0.0002898,7]
[381064225,1755984659787,-151.0,0.0002898,7]
[381064226,1755984659797,-151.0,0.0002898,7]
[381064227,1755984659807,-151.0,0.0002898,7]
[381064228,1755984659816,-206.148215,0.0002898,7]
[381064229,1755984659825,-151.0,0.0002898,7]
[381064230,1755984659835,-167.117976,0.0002898,7]
[381064231,1755984659845,-151.0,0.0002898,7]
[381064232,1755984659855,-151.0,0.0002898,7]
[381064233,1755984659865,-151.0,0.0002898,7]
[381064234,1755984659874,-151.0,0.0002898,7]
[381064235,1755984659884,-151.0,0.0002898,7]
[381064236,1755984659894,-151.0,0.0002898,7]
[381064237,1755984659904,-151.0,0.0002898,7]
[381064238,1755984659913,-151.0,0.0002898,7]
[381064239,1755984659923,-151.0,0.0002898,7]
[381064240,1755984659932,-228.517504,0.0002898,7]
[381064241,1755984659942,-151.0,0.0002898,7]
[381064242,1755984659952,-151.0,0.0002898,7]
[381064243,1755984659961,-288.29061,0.0002898,7]
[381064244,1755984659972,-288.29061,0.0002898,7]
[381064245,1755984659982,-288.29061,0.0002898,7]
[381064246,1755984659992,-2248.116207,0.0002898,7]
[381064247,1755984660002,-288.29061,0.0002898,7]
[381064248,1755984660625,-151.0,0.0002898,7]
[381064249,1755984660661,-2248.116207,0.0002898,7]
[381064250,1755984660714,-151.0,0.0002898,7]
[381064251,1755984660743,-2248.116207,0.0002898,7]
[381064252,1755984660752,-151.0,0.0002898,7]
[381064253,1755984660762,-2248.116207,0.0002898,7]
[381064254,1755984660771,-564.506731,0.0002898,7]
[381064255,1755984660781,-151.0,0.0002898,7]
[381064256,1755984660790,-779.286138,0.0002898,7]
[381064257,1755984660799,-564.506731,0.0002898,7]
[381064258,1755984660808,-151.0,0.0002898,7]
[381064259,1755984660818,-151.0,0.0002898,7]
[381064260,1755984660827,-151.0,0.0002898,7]
[381064261,1755984660836,-564.506731,0.0002898,7]
[381064262,1755984660846,-779.286138,0.0002898,7]
[381064263,1755984660855,-226.950868,0.0002898,7]
[381064264,1755984660864,-151.0,0.0002898,7]
[381064265,1755984660874,-564.506731,0.0002898,7]
[381064266,1755984660883,-859.695571,0.0002898,7]
[381064267,1755984660893,-779.286138,0.0002898,7]
[381064268,1755984660902,-151.0,0.0002898,7]
[381064269,1755984660912,-859.695571,0.0002898,7]
[381064270,1755984660922,-779.286138,0.0002898,7]
[381064271,1755984660931,-859.695571,0.0002898,7]
[381064272,1755984660940,-151.0,0.0002898,7]
[381064273,1755984660950,-859.695571,0.0002898,7]
[381064274,1755984660959,-151.0,0.0002898,7]
[381064275,1755984660968,-151.0,0.0002898,7]
[381064276,1755984660977,-151.0,0.0002898,7]
[381064277,1755984660987,-151.0,0.0002898,7]
[381064278,1755984660996,-151.0,0.0002898,7]
[381064279,1755984661006,-279.905508,0.0002898,7]
[381064280,1755984661015,-151.0,0.0002898,7]
[381064281,1755984661024,-27.14617046,0.0002898,7]
[381064282,1755984661040,-123.85382954,0.0002898,7]
[381064283,1755984661049,-151.0,0.0002898,7]
[381064284,1755984661058,-151.0,0.0002898,7]
[381064285,1755984661067,-151.0,0.0002898,7]
[381064286,1755984661077,-200.698585,0.0002898,7]
[381064287,1755984661086,-151.0,0.0002898,7]
[381064288,1755984661096,-151.0,0.0002898,7]
[381064289,1755984661105,-151.0,0.0002898,7]
[381064290,1755984661115,-162.38433344,0.00028989,2]
[381064291,1755984661131,-3086.25566656,0.00028989,2]
[381064292,1755984661140,-209.0,0.0002899,30]
[381064293,1755984661150,-151.0,0.0002899,7]
[381064294,1755984661159,-151.0,0.0002899,7]
[381064295,1755984661169,-151.0,0.0002899,7]
[381064296,1755984661179,-199.269506,0.0002899,7]
[381064297,1755984661189,-151.0,0.0002899,7]
[381064298,1755984661198,-89.50677586,0.0002899,7]
[381064312,1755985084923,-288.8002144,0.00011845,3]
[381064313,1755985086653,-213.26028519,0.00011796,2]
[381064314,1755985086685,-60.70081599,0.00011845,3]
[381064315,1755985090111,-300.0,0.00011845,3]
[381064326,1755985448043,600.186553,7.945e-05,2]
[381064369,1755985831847,-1200.0,0.00011833,2]
[381064370,1755985831857,-300.0,0.00011833,2]
[381064371,1755985831866,-1004.18626217,0.00011834,3]
[381064372,1755985831936,-295.99999997,0.00011834,3]
[381064373,1755985831947,-699.81373786,0.00011834,3]
[381064375,1755985831956,-500.0,0.00011834,2]
[381064377,1755985831966,-425.67024372,0.00011834,2]
[381064392,1755985832114,-74.32975628,0.00011834,2]
[381064393,1755985832123,-500.0,0.00011834,2]
[381064394,1755985832132,-500.0,0.00011834,2]
[381064395,1755985832141,-500.0,0.00011834,2]
[381064396,1755985832150,-403.28974581,0.00011834,2]
[381064397,1755985832159,-500.0,0.00011834,2]
[381064398,1755985832168,-500.0,0.00011834,2]
[381064399,1755985832177,-500.0,0.00011834,2]
[381064400,1755985832186,-180.0,0.00012992,2]
[381064401,1755985832196,-1200.0,0.00013016,2]
[381064402,1755985832206,-2000.0,0.00013016,3]
[381064403,1755985832215,-250.0,0.00013019,2]
[381064404,1755985832225,-310.0,0.00013019,2]
[381064405,1755985832234,-459.62746296,0.00014173,2]
[381064406,1755985832243,-200.0,0.00014236,2]
[381064407,1755985832252,-151.0,0.00014236,2]
[381064408,1755985832261,-301.46484671,0.00014245,2]
[381064409,1755985832280,-625.19937617,0.00014245,2]
[381064410,1755985832376,-13282.16500764,0.00014245,2]
[381064411,1755985832387,-1431.97049844,0.00014245,2]
[381064412,1755985832399,-626.66769123,0.00014245,2]
[381064413,1755985832419,-331.89658474,0.00014245,2]
[381064416,1755985837566,-860.57467205,0.00014245,2]
[381064417,1755985837590,-1929.2989339,0.00014245,2]
[381064418,1755985837602,-6400.0,0.00014245,2]
[381064419,1755985837625,-49067.73431081,0.00014245,2]
[381064420,1755985837669,-1063.5,0.00014245,2]
[381064421,1755985837723,-1785.66782161,0.00014245,2]
[381064423,1755985837969,-469.65613326,0.00014245,2]
[381064424,1755985839607,-10711.79749642,0.00014245,2]
[381064425,1755985839660,-481.9769529,0.00014245,2]
[381064426,1755985839673,-5652.65829138,0.00014245,2]
[381064427,1755985839770,-0.00444974,0.00014245,2]
[381064428,1755985839796,-3057.11965872,0.00014245,2]
[381064429,1755985839811,-3496.71411905,0.00014245,2]
[381064430,1755985839822,-87868.02115228,0.00014245,2]
[381064431,1755985839841,-31263.67200295,0.00014245,2]
[381064432,1755985839850,-500.0,0.00014273,2]
[381064433,1755985839859,-500.0,0.00014273,2]
[381064434,1755985839868,-500.0,0.00014273,2]
[381064435,1755985839878,-500.0,0.00014273,2]
[381064436,1755985839888,-1000.0,0.00015961,2]
[381064437,1755985839897,-459.62746288,0.0001603,2]
[381064438,1755985839907,-1000.0,0.00016709,2]
[381064439,1755985839916,-158.45,0.00016712,2]
[381064440,1755985839926,-1523.0,0.00016819,2]
[381064441,1755985839935,-151.0,0.00016926,2]
[381064442,1755985839944,-151.0,0.00016935,2]
[381064443,1755985839954,-200.0,0.00016937,2]
[381064444,1755985839963,-151.0,0.00016971,2]
[381064445,1755985839972,-207.4,0.00016975,2]
[381064446,1755985839982,-151.0,0.00016975,2]
[381064447,1755985839991,-459.62746288,0.00017888,2]
[381064448,1755985840001,-1000.0,0.00017924,2]
[381064449,1755985840010,-1000.0,0.00017956,2]
[381064450,1755985840019,-940.03,0.000189,2]
[381064451,1755985840028,-151.0,0.00019714,2]
[381064452,1755985840038,-459.62746288,0.00019745,2]
[381064453,1755985840047,-1000.0,0.00019951,2]
[381064454,1755985840056,-5858.71216355,0.0002,2]
[381064455,1755985840066,-844.27675029,0.0002019,2]
[381064456,1755985840075,-212.10093811,0.0002019,2]
[381064457,1755985840084,-458.60200496,0.0002019,2]
[381064458,1755985840094,-160.0,0.00020192,2]
[381064459,1755985840103,-1000.0,0.00020728,2]
[381064460,1755985840112,-155.81,0.00021,2]
[381064461,1755985840121,-459.62746288,0.00021602,2]
[381064463,1755985840131,-1736.56,0.00021945,30]
[381064464,1755985840140,-1000.0,0.00021946,2]
[381064465,1755985840151,-151.0,0.00022453,2]
[381064466,1755985840161,-940.03,0.000229,2]
[381064467,1755985840170,-683.31,0.00023437,2]
[381064468,1755985840179,-459.62746288,0.0002346,2]
[381064469,1755985840188,-1000.0,0.00023533,2]
[381064470,1755985840197,-666.0,0.00023547,3]
[381064471,1755985840206,-1000.0,0.00023941,2]
[381064472,1755985840215,-940.03,0.00024,2]
[381064473,1755985840224,-355.0,0.000243,2]
[381064474,1755985840233,-1000.0,0.00024658,2]
[381064475,1755985840242,-5000.0,0.00024723,2]
[381064476,1755985840251,-301.74,0.000249,2]
[381064477,1755985840260,-15208.84578895,0.000249,2]
[381064478,1755985840269,-169.51,0.00024908,2]
[381064479,1755985840278,-250.0,0.00024925,2]
[381064480,1755985840287,-1521.04,0.00025,7]
[381064481,1755985840296,-151.0,0.00025192,2]
[381064482,1755985840304,-467.44,0.000252,7]
[381064483,1755985840314,-151.0,0.0002528,2]
[381064484,1755985840324,-225.93613621,0.0002528,2]
[381064485,1755985840333,-160.0,0.0002528,2]
[381064486,1755985840343,-695.39793187,0.0002528,2]
[381064487,1755985840352,-267.46074303,0.0002528,2]
[381064488,1755985840361,-1000.0,0.0002528,2]
[381064489,1755985840370,-1000.0,0.0002528,2]
[381064490,1755985840379,-1000.0,0.0002528,2]
[381064491,1755985840389,-1000.0,0.0002528,2]
[381064492,1755985840399,-1000.0,0.0002528,2]
[381064493,1755985840408,-1000.0,0.0002528,2]
[381064494,1755985840417,-1000.0,0.0002528,2]
[381064495,1755985840427,-1000.0,0.0002528,2]
[381064496,1755985840436,-1000.0,0.0002528,2]
[381064497,1755985840446,-1000.0,0.0002528,2]
[381064498,1755985840455,-1000.0,0.0002528,2]
[381064499,1755985840464,-1000.0,0.0002528,2]
[381064500,1755985840473,-300.0,0.0002528,2]
[381064501,1755985840483,-300.0,0.0002528,2]
[381064502,1755985840492,-151.0,0.0002528,2]
[381064503,1755985840501,-459.62746288,0.00025317,2]
[381064504,1755985840511,-348.0,0.0002548,2]
[381064505,1755985840520,-206.49362813,0.00025528,2]
[381064506,1755985840529,-556.50185502,0.00025597,3]
[381064507,1755985840541,-287.77489527,0.00025597,3]
[381064508,1755985840551,-458.60200496,0.00025597,3]
[381064509,1755985840560,-212.10093811,0.00025597,3]
[381064510,1755985840569,-15208.84578879,0.00025597,3]
[381064511,1755985840578,-532.0,0.00025767,2]
[381064512,1755985840588,-151.0,0.00025828,2]
[381064513,1755985840597,-1521.04,0.00026,7]
[381064514,1755985840607,-208.0,0.00026,2]
[381064515,1755985840616,-1002.0,0.00026,2]
[381064516,1755985840626,-940.03,0.00026,2]
[381064517,1755985840635,-500.0,0.00026237,2]
[381064518,1755985840644,-707.0,0.00026278,2]
[381064519,1755985840654,-31516.7448833,0.00026283,3]
[381064520,1755985840663,-844.27675029,0.00026283,3]
[381064521,1755985840672,-15208.84578879,0.00026293,5]
[381064522,1755985840681,-1000.0,0.00026337,2]
[381064523,1755985840690,-500.0,0.00026349,7]
[381064524,1755985840700,-170.63411567,0.00026376,2]
[381064525,1755985840710,-940.03,0.000264,2]
[381064526,1755985840721,-169.78075248,0.00026438,30]
[381064527,1755985840731,-707.0,0.00026549,2]
[381064528,1755985840740,-500.0,0.00026575,2]
[381064529,1755985840750,-3283.1,0.00026603,13]
[381064530,1755985840759,-183.891,0.00026603,13]
[381064531,1755985840768,-458.60200496,0.00026613,3]
[381064532,1755985840777,-212.10093811,0.00026613,3]
[381064533,1755985840787,-500.0,0.00026623,7]
[381064534,1755985840796,-160.0,0.00026649,2]
[381064535,1755985840808,-277.35679052,0.00026649,2]
[381064536,1755985840816,-341.0,0.0002667,2]
[381064537,1755985840826,-169.78075248,0.00026712,30]
[381064538,1755985840835,-1000.0,0.00026785,2]
[381064539,1755985840846,-707.0,0.0002682,2]
[381064540,1755985840855,-168.0,0.0002687,2]
[381064541,1755985840864,-168.0,0.00026871,2]
[381064542,1755985840874,-500.0,0.00026897,7]
[381064543,1755985840884,-186.0,0.00026914,2]
[381064544,1755985840894,-186.0,0.00026927,7]
[381064545,1755985840904,-168.0,0.00026947,2]
[381064546,1755985840913,-260.53,0.00026986,2]
[381064547,1755985840923,-15208.84578879,0.0002699,6]
[381064548,1755985840932,-168.0,0.00026993,2]
[381064549,1755985840941,-168.0,0.00026995,2]
[381064550,1755985840950,-1521.04,0.00027,7]
[381064551,1755985840959,-205.0,0.00027,2]
[381064552,1755985840969,-469.06,0.00027014,2]
[381064553,1755985840978,-169.78075248,0.00027014,30]
[381064554,1755985840987,-168.0,0.00027026,2]
[381064555,1755985840997,-168.0,0.00027026,2]
[381064556,1755985841006,-186.0,0.00027027,7]
[381064557,1755985841015,-469.06,0.00027068,2]
[381064558,1755985841025,-1385.04,0.00027068,2]
[381064559,1755985841034,-469.06,0.00027068,2]
[381064560,1755985841044,-155.09199391,0.00027074,2]
[381064561,1755985841053,-707.0,0.00027091,2]
[381064562,1755985841062,-252.43473585,0.00027091,2]
[381064563,1755985841071,-232.53094817,0.00027123,2]
[381064564,1755985841080,-168.0,0.00027153,2]
[381064565,1755985841090,-500.0,0.00027171,7]
[381064566,1755985841099,-459.62746288,0.00027174,2]
[381064567,1755985841110,-2000.0,0.00027299,2]
[381064568,1755985841119,-1002.0,0.000273,2]
[381064569,1755985841130,-1598.42,0.00027305,2]
[381064570,1755985841141,-468.71,0.00027305,2]
[381064571,1755985841150,-169.78075248,0.00027315,30]
[381064572,1755985841160,-31516.7448833,0.0002733,3]
[381064573,1755985841169,-1500.0,0.00027333,2]
[381064574,1755985841179,-900.0,0.0002734,10]
[381064575,1755985841188,-900.0,0.0002734,10]
[381064576,1755985841198,-900.0,0.0002734,10]
[381064577,1755985841207,-900.0,0.0002734,10]
[381064578,1755985841216,-900.0,0.0002734,10]
[381064579,1755985841226,-694.33458329,0.0002734,10]
[381064580,1755985841239,-900.0,0.0002734,10]
[381064581,1755985841252,-900.0,0.0002734,10]
[381064582,1755985841261,-900.0,0.0002734,10]
[381064583,1755985841270,-900.0,0.0002734,10]
[381064584,1755985841280,-900.0,0.0002734,10]
[381064585,1755985841290,-900.0,0.0002734,10]
[381064586,1755985841302,-900.0,0.0002734,10]
[381064587,1755985841313,-900.0,0.0002734,10]
[381064588,1755985841328,-707.0,0.00027362,2]
[381064589,1755985841337,-301.74,0.0002739,2]
[381064590,1755985841346,-570.4900403,0.00027397,2]
[381064591,1755985841608,-700.0,0.00027397,2]
[381064592,1755985841618,-600.0,0.00027397,80]
[381064593,1755985841627,-300.0,0.00027397,2]
[381064594,1755985841636,-1500.0,0.00027397,16]
[381064595,1755985841646,-844.27675029,0.000274,10]
[381064596,1755985841655,-212.10093811,0.000274,10]
[381064597,1755985841664,-844.27675029,0.000274,3]
[381064598,1755985841673,-347.28,0.00027422,2]
[381064599,1755985841683,-408.37,0.00027422,2]
[381064600,1755985841692,-500.0,0.00027445,15]
[381064601,1755985841701,-186.0,0.00027464,2]
[381064602,1755985841710,-186.0,0.00027466,2]
[381064603,1755985841719,-182.521655,0.0002754,2]
[381064604,1755985841728,-168.0,0.00027627,2]
[381064605,1755985841737,-707.0,0.00027633,2]
[381064606,1755985841746,-155.09199384,0.0002766,2]
[381064607,1755985841755,-15208.84578879,0.00027687,8]
[381064608,1755985841764,-500.0,0.00027719,15]
[381064609,1755985841774,-188.0,0.00027724,7]
[381064610,1755985841783,-334.0,0.0002785,2]
[381064611,1755985841793,-2000.0,0.00027881,5]
[381064612,1755985841802,-3254.53,0.00027899,2]
[381064613,1755985841812,-707.0,0.00027903,2]
[381064614,1755985841821,-186.0,0.00027912,2]
[381064615,1755985841830,-186.0,0.00027926,2]
[381064616,1755985841839,-151.0,0.00027931,2]
[381064617,1755985841848,-279.13,0.00028,2]
[381064618,1755985841857,-500.32999345,0.00028,2]
[381064619,1755985841867,-205.0,0.00028,2]
[381064620,1755985841876,-12906.92458843,0.00028,2]
[381064621,1755985841886,-258.13849176,0.00028,2]
[381064622,1755985841895,-1521.04,0.00028,7]
[381064623,1755985841905,-844.27675029,0.00028,7]
[381064624,1755985841914,-1800.0,0.00028,29]
[381064625,1755985841924,-287.61899177,0.00028018,2]
[381064626,1755985841933,-721.12765535,0.00028019,2]
[381064627,1755985841942,-316.0,0.00028084,5]
[381064628,1755985841952,-458.60200496,0.000281,7]
[381064629,1755985841961,-212.10093811,0.000281,7]
[381064630,1755985841971,-1439.24949098,0.00028119,2]
[381064631,1755985841980,-1736.56,0.00028169,30]
[381064632,1755985841989,-200.0,0.00028208,2]
[381064633,1755985841999,-1316.87,0.00028219,7]
[381064634,1755985842008,-646.7313721,0.00028242,2]
[381064635,1755985842017,-175.25,0.00028244,2]
[381064636,1755985842027,-155.09199384,0.00028246,2]
[381064637,1755985842036,-31516.7448833,0.00028374,3]
[381064638,1755985842045,-15208.84578879,0.00028384,9]
[381064639,1755985842055,-1002.02128204,0.00028429,5]
[381064640,1755985842064,-168.0,0.00028437,2]
[381064641,1755985842079,-168.0,0.00028526,2]
[381064642,1755985842091,-1002.0,0.000286,30]
[381064643,1755985842100,-168.0,0.00028627,2]
[381064644,1755985842109,-168.0,0.00028631,2]
[381064645,1755985842119,-500.0,0.000287,10]
[381064646,1755985842129,-200.0,0.00028756,2]
[381064647,1755985842138,-1400.0,0.00028779,2]
[381064648,1755985842150,-1200.0,0.0002878,2]
[381064649,1755985842164,-150.0,0.00028785,2]
[381064650,1755985842174,-1000.0,0.000288,10]
[381064651,1755985842183,-1100.0,0.00028812,2]
[381064652,1755985842192,-155.09199384,0.00028832,2]
[381064653,1755985842203,-1000.0,0.00028854,2]
[381064654,1755985842212,-500.0,0.00028872,2]
[381064655,1755985842222,-150.0,0.00028872,2]
[381064656,1755985842231,-209.10607332,0.00028872,2]
[381064657,1755985842240,-250.0,0.00028872,2]
[381064658,1755985842250,-500.0,0.00028872,2]
[381064659,1755985842259,-500.0,0.00028872,2]
[381064660,1755985842269,-150.0,0.00028872,2]
[381064661,1755985842278,-500.0,0.00028872,2]
[381064662,1755985842288,-500.0,0.00028872,2]